Cogmind - Beta 9.1 @@@ ROGUE MODE // 2019.11.05 @ 08:58:07 Player: MrPainting Result: Self-destructed Performance ------------- Evolutions (1) 500 Regions Visited (2) 400 Robots Destroyed (26) 130 Value Destroyed (572) 572 Prototype IDs (0) 0 Alien Tech Used (0) 0 Bonus (0) 0 TOTAL SCORE: 1602 Bonus ------- None Cogmind --------- Core Integrity 294/400 Matter 149/300 Energy 160/160 System Corruption 1% Temperature Cool (0) Location -9/Materials Parts ------- Power (1) Light Nuclear Core Propulsion (3) Utility (3) Small Storage Unit Weapon (2) Inventory (6) Hover Unit High-capacity Storage Unit Heavy EM Pulse Gun Heavy EM Pulse Gun Peak State ------------ Power Light Nuclear Core Propulsion (None) Utility Improved Heat Sink Small Storage Unit Weapon Grenade Launcher Inventory Hover Unit High-capacity Storage Unit Heavy EM Pulse Gun Heavy EM Pulse Gun [Rating: 8] Favorites ----------- Power Light Ion Engine Engine Light Ion Engine Power Core Light Nuclear Core Propulsion Aluminum Leg Leg Aluminum Leg Utility Small Storage Unit Device Improved Heat Sink Storage Small Storage Unit Weapon Light Assault Rifle Energy Gun Small Laser Ballistic Gun Light Assault Rifle Ballistic Cannon Light Cannon Launcher Grenade Launcher Build | -11 -10 -9 ------- Run | Scr Mat Mat Slots Evolved 2 | . . 2 Power . | . . . Propulsion 1 | . . 1 Utility 1 | . . 1 Weapon . | . . . Parts Attached 14 | 4 4 6 Power 3 | . 1 2 Engine 2 | . 1 1 Core 1 | . . 1 Reactor . | . . . Propulsion 2 | 2 . . Treads . | . . . Leg 2 | 2 . . Wheel . | . . . Hover . | . . . Flight . | . . . Utility 2 | . 1 1 Device 1 | . . 1 Storage 1 | . 1 . Processor . | . . . Hackware . | . . . Protection . | . . . Artifact . | . . . Weapon 7 | 2 2 3 Energy Gun 2 | 1 1 . Energy Cannon . | . . . Ballistic Gun 2 | 1 . 1 Ballistic Cannon 1 | . 1 . Launcher 2 | . . 2 Special Weapon . | . . . Impact Weapon . | . . . Slashing Weapon . | . . . Piercing Weapon . | . . . Special Melee Weapon . | . . . Unidentified Prototypes . | . . . Parts Lost 11 | . 5 6 Power 1 | . . 1 Propulsion 2 | . 2 . Utility 1 | . . 1 Weapon 7 | . 3 4 Highest Loss Streak 4 | . 2 4 Average Slot Usage (%) 49 | . 58 40 Engine 7 | . 6 7 Leg 11 | . 21 . Storage 6 | . 3 11 Energy Gun 3 | . 6 . Ballistic Gun 9 | . 10 8 Ballistic Cannon 8 | . 8 8 Launcher 1 | . . 2 Naked Turns . | . . . Heaviest Build 13 | 2 13 13 Greatest Support 20 | 20 20 3 Greatest Overweight (x) 4 | . 3 4 Average Overweight (x) 1 | . . 2 Largest Inventory Capacity 6 | 4 6 6 Average Capacity 5 | 4 4 6 Most Carried 6 | 3 6 6 Average Carried 4 | 2 4 4 Final Capacity 6 | 4 6 6 Final Carried 6 | 3 6 4 Class Distribution -------------------- 100% | Mutant Dominant Class ---------------- Mutant | -10/Materials Mutant | -9/Materials Resources | -11 -10 -9 ----------- Run | Scr Mat Mat Matter Collected 464 | 242 198 24 Remotely . | . . . Salvage Created 790 | 108 457 225 Parts 39 | 3 28 8 Haulers Intercepted 1 | . 1 . Recyclers Shooed 3 | . 2 1 Parts Field Recycled . | . . . Retrieved Matter . | . . . Parts Self-Destructed . | . . . Prevented . | . . . Kills | -11 -10 -9 ------- Run | Scr Mat Mat Combat Hostiles Destroyed 18 | . 14 4 Guns 7 | . 6 1 Cannons 9 | . 8 1 AOE 2 | . . 2 Classes Destroyed 8 | 2 6 . Worker 1 | . 1 . Builder 2 | . 1 1 Tunneler 1 | 1 . . Hauler 1 | . 1 . Recycler 2 | 1 . 1 Operator 1 | . 1 . Swarmer 6 | . 6 . Grunt 12 | . 8 4 Best Kill Streak 9 | 1 9 6 Combat Bots Only 7 | . 7 4 Max Kills in Single Turn 2 | 1 2 2 Gunslinging . | . . . Exploded 1 | . . 1 Melee . | . . . Uniques/NPCs Destroyed . | . . . Combat | -11 -10 -9 -------- Run | Scr Mat Mat Damage Taken 1108 | . 634 474 Core 258 | . 152 106 Absorbed by Shields . | . . . Core Remaining (%) 69 | 100 39 . Volleys Fired 71 | 2 57 12 Largest 2 | 2 2 2 Hottest 75 | 60 75 60 Shots Fired 130 | 4 105 21 Gun 74 | 4 65 5 Cannon 47 | . 40 7 Launcher 9 | . . 9 Special . | . . . Kinetic 99 | 2 85 12 Thermal 22 | 2 20 . Explosive 9 | . . 9 Electromagnetic . | . . . Robot Hit Streak 11 | 4 11 8 Robot Miss Streak 4 | . 4 2 Penetration Max . | . . . Secondary Targets 1 | . 1 . Max Gunslinging Chain 1 | . 1 . Shots Hit Robots 82 | 4 65 13 Core Hits 46 | 3 30 13 Critical Hits 1 | . 1 . Critical Kills . | . . . Critical Parts Destroyed 1 | . 1 . Melee Attacks . | . . . Impact . | . . . Slashing . | . . . Piercing . | . . . Sneak Attacks . | . . . Combat Hostiles . | . . . Follow-up Attacks . | . . . Damage Inflicted 1314 | 35 783 496 Guns 486 | 35 422 29 Cannons 413 | . 361 52 Explosions 415 | . . 415 Melee . | . . . Ramming . | . . . Kinetic 710 | 14 615 81 Thermal 189 | 21 168 . Explosive 415 | . . 415 Electromagnetic . | . . . Impact . | . . . Slashing . | . . . Piercing . | . . . Highest Corruption 2 | . 2 1 Average Corruption 1 | . 2 1 Corruption Purged . | . . . Effects 3 | . 3 . Energy Discharges 1 | . 1 . Targeting Errors 1 | . 1 . Weapon Failures 1 | . 1 . Overload Shots . | . . . Overflow Damage 4 | . . 4 Projectiles . | . . . Explosions 4 | . . 4 Melee . | . . . Knockbacks 3 | . 3 . Impact . | . . . Kinetic 3 | . 3 . Secondary . | . . . Self-Inflicted Damage 125 | . . 125 Shots 4 | . . 4 Rammed . | . . . Targets Rammed . | . . . Kicked . | . . . Crushed . | . . . Highest Temperature 72 | 10 72 15 Average Temperature 16 | 7 17 8 Received Heat Transfer 450 | . 264 186 Siege Activations . | . . . Robots Corrupted . | . . . Combat Hostiles . | . . . Parts Fried . | . . . Impact Corruptions . | . . . Robots Melted . | . . . Combat Hostiles . | . . . Parts Melted . | . . . Heat Transferred 425 | 50 375 . Parts Sabotaged . | . . . Parts Stolen . | . . . Parts Stripped . | . . . Power Chain Reactions . | . . . Missiles Intercepted . | . . . Alert | -11 -10 -9 ------- Run | Scr Mat Mat Peak Influence 373 | 10 373 252 Average Influence 156 | 6 166 182 Maximum Alert Level 1 | . 1 1 Low Security (%) 71 | . . . Level 1 28 | . . . Level 2 . | . . . Level 3 . | . . . Level 4 . | . . . Level 5 . | . . . High Security . | . . . Max Security . | . . . Squads Dispatched 2 | . 2 . Investigation . | . . . Extermination . | . . . Reinforcement 2 | . 2 . Assault . | . . . Garrison . | . . . Intercept . | . . . Construction Impeded . | . . . Haulers Reinforced . | . . . Stealth | -11 -10 -9 --------- Run | Scr Mat Mat Distress Signals 5 | . 4 1 Communications Jammed . | . . . Distress Signals . | . . . Times Spotted 33 | . 24 9 Peak Tracking Total 7 | . 7 5 Tactical Retreats 1 | . 1 . Traps | -11 -10 -9 ------- Run | Scr Mat Mat Traps Triggered 1 | . 1 . Indirectly . | . . . Trap Hack Attempts . | . . . Triggered . | . . . Disarmed . | . . . Reprogrammed . | . . . Reused . | . . . Traps Extracted . | . . . Installed . | . . . Triggered . | . . . Machines | -11 -10 -9 ---------- Run | Scr Mat Mat Machines Disabled 3 | . 2 1 Max in Single Turn 1 | . 1 1 Machines Sabotaged . | . . . Garrisons Compromised . | . . . Overloaded Fab Kills . | . . . Fab Network Shutdowns . | . . . Hacking | -11 -10 -9 --------- Run | Scr Mat Mat Machines Accessed 1 | . . 1 Terminals 1 | . . 1 Fabricators . | . . . Repair Stations . | . . . Recycling Units . | . . . Scanalyzers . | . . . Garrison Access . | . . . Total Hacks 3 | . . 3 Successful . | . . . Failed 3 | . . 3 Catastrophic . | . . . Database Lockouts . | . . . Manual 3 | . . 3 Terminals 3 | . . 3 Fabricators . | . . . Repair Stations . | . . . Recycling Units . | . . . Scanalyzers . | . . . Garrison Access . | . . . Terminal Hacks . | . . . Fabricator Hacks . | . . . Repair Station Hacks . | . . . Recycling Unit Hacks . | . . . Scanalyzer . | . . . Garrison Access Hacks . | . . . Unauthorized Hacks 3 | . . 3 Terminals . | . . . Fabricators . | . . . Repair Stations . | . . . Recycling Units . | . . . Scanalyzers . | . . . Garrison Access . | . . . Data Cores Recovered . | . . . Used . | . . . Hacking Detections 1 | . . 1 Full Trace Events 1 | . . 1 Feedback Events 1 | . . 1 Corruption 1 | . . 1 Feedback Blocked . | . . . Robot Schematics Acquired . | . . . Robots Built . | . . . Matter . | . . . Time . | . . . Total Robot Build Rating . | . . . Part Schematics Acquired . | . . . Parts Built . | . . . Matter . | . . . Time . | . . . Total Part Build Rating . | . . . Parts Repaired . | . . . Time . | . . . Parts Recycled . | . . . Recycled Matter . | . . . Retrieved Matter . | . . . Retrieved Components . | . . . Parts Scanalyzed . | . . . Part Schematics Acquired . | . . . Parts Damaged . | . . . Bothacking | -11 -10 -9 ------------ Run | Scr Mat Mat Used RIF Installer . | . . . Robots Hacked . | . . . Non-combat . | . . . Combat . | . . . Robot Hacks Applied . | . . . Relay Couplers Released . | . . . Robots Rewired . | . . . Allies Hacked . | . . . Hacks Repelled . | . . . Allies | -11 -10 -9 -------- Run | Scr Mat Mat Total Allies . | . . . Largest Group . | . . . Highest-Rated Group . | . . . Highest-Rated Ally . | . . . Total Orders . | . . . Ally Attacks . | . . . Total Damage . | . . . Kills . | . . . Allies Corrupted . | . . . Allies Melted . | . . . Intel | -11 -10 -9 ------- Run | Scr Mat Mat Robot Analysis Total . | . . . Derelict Logs Recovered . | . . . Drone Launches . | . . . Drone Recoveries . | . . . Exploration | -11 -10 -9 ------------- Run | Scr Mat Mat Turns Passed 671 | 68 328 275 Spaces Moved 288 | 49 124 115 Core 137 | 8 14 115 Treads . | . . . Legs 151 | 41 110 . Wheels . | . . . Hover . | . . . Flight . | . . . Fastest Speed 50 | 50 120 100 Average Speed 153 | 108 133 195 Slowest Speed 250 | 120 200 250 Overloaded Moves . | . . . Propulsion Burnouts . | . . . Robots Hopped . | . . . Cave-ins Triggered . | . . . Exploration Rate (%) 17 | 4 28 21 Regions Visited 2 Branch Regions . Pre-discovered Areas . | . . . Known Exits Taken . | . . . Unknown Exits Taken 2 | 1 1 . Scrap Searched . | . . . Spaces Dug . | . . . Terrain Destroyed 22 | . . 22 Melee . | . . . Projectile . | . . . AOE 22 | . . 22 Actions | -11 -10 -9 --------- Run | Scr Mat Mat Total 392 | 59 189 144 Wait 8 | . . 8 Move 286 | 48 123 115 Hop . | . . . Pick Up 12 | 5 5 2 Fast Attach 6 | 2 2 2 Attach 7 | 2 2 3 Detach . | . . . Swap 1 | . . 1 Drop 1 | . . 1 Fire 71 | 2 57 12 Melee . | . . . Ram . | . . . Kick . | . . . Crush . | . . . Escape Stasis . | . . . Rewire . | . . . Trap . | . . . Miscellaneous . | . . . Route ------- -11/Scrapyard -10/Materials (discovered 2 exits: *Mat / [*Min]) -9/Materials History --------- Turn | Location | Event 6 | -11/Scrapyard | Discovered new exit (range 15) 69 | -11/Scrapyard | Entered Materials 87 | -10/Materials | Discovered new exit (range 16) 300 | -10/Materials | Core integrity fell below 50% 325 | -10/Materials | Destroyed 7 combat bots 340 | -10/Materials | Build established: Mutant 375 | -10/Materials | Discovered new exit (range 7) 397 | -10/Materials | Entered another Materials area 397 | -9/Materials | Evolved 2 slots: Propulsion x1, Utility x1 652 | -9/Materials | Lost 4 parts (1p3w) 672 | -9/Materials | Self-destructed Last Messages --------------- 00635_ Acquired Lgt. Nuclear Core. 00636_ U-05 Engineer lays Concrete. 00639_ The unstable cave ceiling collapses. 00639_ Acquired Imp. Heat Sink. 00639_ U-05 Engineer lays Concrete. 00642_ U-05 Engineer builds a Wall. 00642_ U-05 Engineer lays Concrete. 00648_ U-05 Engineer builds a Wall. 00649_ U-05 Engineer lays Concrete. 00652_ U-05 Engineer builds a Wall. 00653_ U-05 Engineer lays Concrete. 00654_ Grenade Launcher destroyed. 00654_ U-05 Engineer lays Concrete. 00656_ U-05 Engineer builds a Wall. 00657_ U-05 Engineer lays Concrete. 00657_ U-05 Engineer builds a Wall. 00658_ U-05 Engineer lays Concrete. 00660_ Imp. Heat Sink destroyed. 00661_ U-05 Engineer lays Concrete. 00662_ R-06 Scavenger collects Structural Scanner. Map ----- +----------------------------------------------------+ | ?????????????????????????????? ????? "???????? | | ??????????????????????????????# ??""" """ !!??? | | ????????????????????????###???# #?""" """ ? ? | | ????????????????????????? ??# +? ? | | ?????????????????????????" ?# #? ?? | | ?????????????????????????? ?# ### +###+# | | ??????????????????????????? # ###### # # | | ???????????????????????????? # | | ????????????????????????????? + %* | | ??????????????????????????????# | | ?????????????????? ???????????# | | ?????????????????? ??????????# | | ?????????????????? ########## " " | | ?????????????????? """"" | | ????????????????? [ """"" | | ????????????????? """ | | ?????????????????????###Y a ## # # | | ???????????????????????# # % # | | ???????????????????????# #"S # | | ???????????????????????# #""" # | | ????????????############ # "" # | | ???????????? # # | | ???????????? # # | | ???????????? g ######## | | ??????????????" """ """ """ #??????# [[[ | | ?????????????????""" """@ """ #??????# | | ??????????????????"" """ """ #??????# [[ | | ????????????????? #?????######### | | ????????????????? g #?????????????# | | ????????????????? #?????????????# | | ???????????????? #?????????????# | | ????????????????? #?????????????# | | ????????????????######+####### #?????????????# | | ??????????????????????????????! !#????????????# | | ??????????????????????????????! !#??????????### | | ??????????????????????????????#!!!!##??????????# | | ????????????????????????????????####???????????# | | ???????????????????????????????????????????????# | | ???????????????????????????????????????????????# | | ???????????????????????????????????????????????# | | ???????????????????????????????????????????????# | | ???????????????????????????????????????????????# | | ???????????????????????????????????????????????### | | | | | | | | | | | | | | | +----------------------------------------------------+ Best States ------------- Heat Dissipation 42 Energy Generation 14 Energy Capacity 250 Matter Stores 300 Matter Capacity 300 Sight Range 16 Terrain Scan Density 10 Evasion (%) 50 Item Schematics ----------------- None Robot Schematics ------------------ None Fabricated ------------ Nothing Alien Tech Used ----------------- None Achievements -------------- None Challenges ------------ None Game ------ Seed TargetingPrecisionCompactor Manual? 0 Play Time 00:06:44 Cumulative 114.7 hours Start 2019.11.05 @ 08:53:02 End 2019.11.05 @ 08:58:07 Sessions 1 Manual Loads 0 Difficulty Rogue Special Mode None Game No. 203 Rogue 203 Adventurer 0 Explorer 0 Win Type - Total 0 Types 0/0/0/0/0/0/0 Lore% 33 Gallery% 50 Achievement% 34 Wizard Run 0 Options --------- ASCII 0 Keyboard 0 Movement Mouse Keybinds 0 Fullscreen 1 Font 18/SmallcapsGlow Map View 76x50 Tactical HUD 1 Map Filters NONE Filters NONE Steam 1 RUN: b9e86a96-3ad9-4d78-8a24-c6b5dd5550cb